fUSD/lending_fUSD_20250820
["ID","MTS","AMOUNT","RATE_DAILY","PERIOD"]
[380317297,1755664239505,-1000.0,0.00010793,2]
[380317299,1755664239515,-1000.0,0.00010793,2]
[380317301,1755664239524,-1009.64578373,0.00010793,2]
[380317303,1755664239533,-277.35679052,0.00010793,2]
[380317305,1755664239542,-152.41643363,0.00010793,2]
[380317307,1755664239552,-420.86214622,0.00010793,2]
[380317309,1755664239562,-1000.0,0.00010799,2]
[380317311,1755664239571,-137277.34564865,0.000108,2]
[380317313,1755664239583,-1000.0,0.000108,2]
[380317315,1755664239592,-202.25,0.000108,2]
[380317317,1755664239602,-203.59,0.000108,2]
[380317319,1755664239611,-202.99,0.000108,2]
[380317321,1755664239621,-826.60555168,0.00010819,2]
[380317323,1755664239630,-826.60555168,0.00010879,2]
[380317325,1755664239639,-627.01877,0.0001089,2]
[380317327,1755664239649,-1142.083,0.00010893,2]
[380317329,1755664239658,-1000.0,0.00010899,2]
[380317332,1755664239667,-169.2868,0.000109,2]
[380317334,1755664239677,-238.79937449,0.000109,2]
[380317335,1755664239686,-779.11526591,0.000109,2]
[380317338,1755664239695,-323.66506924,0.000109,2]
[380317339,1755664239704,-242.7936883,0.000109,2]
[380317342,1755664239714,-169.24323595,0.000109,2]
[380317344,1755664239723,-203.66,0.0001091,2]
[380317346,1755664239736,-826.60555168,0.00010938,2]
[380317348,1755664239745,-304.65,0.00010945,2]
[380317350,1755664239754,-301.25,0.00010945,2]
[380317352,1755664239763,-178.0561921,0.00010955,2]
[380317354,1755664239773,-3595.4578109,0.00010992,2]
[380317356,1755664239782,-150.0,0.00010993,2]
[380317358,1755664239791,-150.0,0.00010993,2]
[380317360,1755664239800,-500.0,0.00010993,2]
[380317362,1755664239810,-826.60555168,0.00010998,2]
[380317364,1755664239819,-250.0,0.00010999,2]
[380317366,1755664239829,-500.0,0.00010999,2]
[380317368,1755664239838,-500.0,0.00010999,2]
[380317370,1755664239847,-500.0,0.00010999,2]
[380317372,1755664239857,-150.0,0.00010999,2]
[380317374,1755664239866,-150.0,0.00010999,2]
[380317376,1755664239875,-420.0,0.00010999,2]
[380317378,1755664239884,-229734.3974745,0.00011,2]
[380317380,1755664239893,-3174.89854846,0.00011,2]
[380317382,1755664239903,-301.45157035,0.00011,2]
[380317384,1755664239912,-484955.88877184,0.00011,2]
[380317387,1755664239922,-15862.85,0.00011,2]
[380317389,1755664239931,-293087.94,0.00011,2]
[380317391,1755664239940,-151.0,0.00011,2]
[380317393,1755664239950,-151.0,0.00011,2]
[380317395,1755664239959,-151.0,0.00011,2]
[380317397,1755664239968,-1219.0,0.00011,2]
[380317399,1755664239977,-151.0,0.00011,2]
[380317401,1755664239987,-539.18,0.00011,2]
[380317403,1755664239996,-6032.805285,0.00011,2]
[380317404,1755664240005,-176.03,0.00011,2]
[380317406,1755664240014,-539.18,0.00011,2]
[380317408,1755664240024,-807.87,0.00011,2]
[380317411,1755664240033,-408.27,0.00011,2]
[380317412,1755664240042,-7030.1469447,0.00011,2]
[380317413,1755664240051,-982653.3605826,0.00011,2]
[380317414,1755664240061,-6761254.90708123,0.00011,2]
[380317415,1755664240074,-24706.28293501,0.00011,2]
[380317416,1755664240103,-8088.4804,0.00011,2]
[380317417,1755664240114,-1156.1076,0.00011,2]
[380317418,1755664240130,-1157.58852983,0.00011,2]
[380317419,1755664240171,-2933.97945346,0.00011,2]
[380317420,1755664240182,-1000.0,0.00011,2]
[380317421,1755664240248,-505.0,0.00011,2]
[380317426,1755664241193,-5336.52164563,0.00011,2]
[380317427,1755664241252,-602.0,0.00011,2]
[380317428,1755664241266,-1138.2,0.00011,2]
[380317429,1755664241292,-23611.2559014,0.00011,2]
[380317430,1755664241306,-69164.35278219,0.00011,2]
[380317431,1755664241328,-87634.5878289,0.00011,2]
[380317436,1755664243193,-12972.73680521,0.00011,2]
[380317437,1755664243250,-341.46735558,0.00011,2]
[380317440,1755664247614,-257.605259,9.915e-05,2]
[380317441,1755664247624,-4287.70716103,0.00011,2]
[380317442,1755664247709,-1907.42836594,0.00011,2]
[380317443,1755664247750,-523.2668,0.00011,2]
[380317444,1755664247761,-10826.15425522,0.00011,2]
[380317445,1755664247772,-1010.1,0.00011,2]
[380317446,1755664247783,-1042.4337992,0.00011,2]
[380317447,1755664319962,170.0,0.00010171,7]
[380317451,1755664457136,-351.49631239,0.00010392,2]
[380317453,1755664464149,-500.0,0.00010392,2]
[380317454,1755664474113,-500.0,0.00010082,2]
[380317455,1755664480396,-500.0,0.00010082,2]
[380317456,1755664488641,-500.0,0.00010082,2]
[380317457,1755664496205,-300.0,0.00010082,2]
[380317459,1755664573746,-1200.0,0.00010082,2]
[380317460,1755664578721,-171.79,0.00010082,2]
[380317461,1755664580920,-300.0,0.00010082,2]
[380317462,1755664581432,-280.84106987,0.00010082,2]
[380317463,1755664588456,-297.98884539,0.00010082,2]
[380317464,1755664588891,-150.0,0.00010082,2]
[380317465,1755664590045,-357.67763832,0.00010082,2]
[380317466,1755664596359,-175.46398546,0.00010082,2]
[380317467,1755664596728,-472.1998,0.00010082,2]
[380317468,1755664598268,-152.0,0.00010082,2]
[380317470,1755664602182,-195.77866096,0.00010082,2]
[380317471,1755664602214,-4.93872399,0.00010391,2]
[380317472,1755664604288,-49.91773068,0.00010391,2]
[380317473,1755664604458,-245.14354533,0.00010391,2]
[380317474,1755664607291,-156.01492134,0.00010391,2]
[380317475,1755664608658,-211.5924972,0.00010391,2]
[380317476,1755664611753,-264.93777877,0.00010391,2]
[380317477,1755664611811,-424.47185936,0.00010391,2]
[380317478,1755664611984,-142.98294333,0.00010391,2]
[380317479,1755664613531,-230.63975211,0.00010391,2]
[380317480,1755664618208,-69.36024789,0.00010391,2]
[380317481,1755664618231,-115.95943844,0.00010392,2]
[380317482,1755664625015,-208.45992187,0.00010392,2]
[380317483,1755664626427,-262.48051246,0.00010392,2]
[380317485,1755664627848,-489.39403278,0.00010392,2]
[380317486,1755664632020,-320.07042311,0.00010392,2]
[380317487,1755664635446,-183.58895287,0.00010392,2]
[380317488,1755664641185,-249.90042608,0.00010392,2]
[380317489,1755664644607,-431.43118988,0.00010392,2]
[380317490,1755664648695,-209.78637255,0.00010392,2]
[380317491,1755664650161,-300.0,0.00010392,2]
[380317492,1755664652854,-450.63419628,0.00010392,2]
[380317493,1755664655445,-200.44395577,0.00010392,2]
[380317494,1755664656625,-243.44421809,0.00010392,2]
[380317495,1755664659921,-325.650417,0.00010392,2]
[380317496,1755664664426,-254.4445753,0.00010392,2]
[380317497,1755664666202,-284.90823777,0.00010392,2]
[380317498,1755664669718,-386.48566507,0.00010392,2]
[380317499,1755664671742,-271.44919143,0.00010392,2]
[380317502,1755665071474,-193.37540226,0.00010283,2]
[380317503,1755665073457,-182.17252471,0.00010283,2]
[380317504,1755665076556,-215.62007303,0.00010283,2]
[380317505,1755665076577,-61.46713699,0.0001038,2]
[380317506,1755665079258,-124.06542246,0.0001038,2]
[380317507,1755665116263,-174.33201766,0.00010026,2]
[380317508,1755665117397,-150.0,9.888e-05,2]
[380317509,1755665117420,-4.0098902,9.888e-05,2]
[380317510,1755665119434,-145.9901098,9.888e-05,2]
[380317511,1755665119456,-57.64204691,0.00010026,2]
[380317512,1755665128867,-150.0,9.888e-05,2]
[380317513,1755665128890,-92.18784329,9.888e-05,2]
[380317514,1755665132490,-67.29858889,9.888e-05,2]
[380317515,1755665132514,-110.41172974,9.888e-05,2]
[380317516,1755665134625,-42.04917719,9.888e-05,2]
[380317517,1755665134648,-156.68343623,9.888e-05,2]
[380317518,1755665134671,-0.26738658,9.888e-05,2]
[380317519,1755665136901,-149.73261342,9.888e-05,2]
[380317520,1755665136924,-100.26738658,9.888e-05,2]
[380317521,1755665140122,-49.73261342,9.888e-05,2]
[380317522,1755665140146,-119.81738658,0.00010026,2]
[380317523,1755665144030,-185.93118082,0.00010026,2]
[380317524,1755665145360,-351.49631239,0.00010026,2]
[380317525,1755665150989,-151.0,9.888e-05,2]
[380317526,1755665151015,-77.75756738,0.00010026,2]
[380317527,1755665155574,-33.02348826,0.00010026,2]
[380317528,1755665314519,-216.97651174,0.00010026,2]
[380317529,1755665316191,-159.84848826,0.00010026,2]
[380317530,1755665375351,-175.46276354,0.00010026,2]
[380317531,1755665377235,-266.59154002,0.00010026,2]
[380317532,1755665379597,-469.04045998,0.00010026,2]
[380317533,1755665384146,-324.539919,0.00010026,2]
[380317534,1755665384551,170.0,9.897e-05,7]
[380317535,1755665389041,-4.14431746,0.00010026,2]
[380317543,1755665433168,-175.650417,0.00010207,2]
[380317544,1755665433178,-177.71031863,0.0001025,2]
[380317545,1755665433187,-300.0,0.00010259,2]
[380317546,1755665433196,-1200.0,0.00010259,2]
[380317547,1755665433205,-300.0,0.00010259,2]
[380317548,1755665433215,-2027.8354111,0.0001026,2]
[380317549,1755665433225,-1632.8690287,0.0001026,2]
[380317550,1755665433235,-1024.17748374,0.0001026,2]
[380317551,1755665433300,-608.69154506,0.0001026,2]
[380317552,1755665433310,-1.79414236,0.00010266,2]
[380317553,1755665433320,-148.20585764,0.00010266,2]
[380317554,1755665433330,-790.2962643,0.00010266,2]
[380317555,1755665433339,-161.15212782,0.00010266,2]
[380317556,1755665433350,-693.10460756,0.00010266,2]
[380317557,1755665433361,-152.98360148,0.00010266,2]
[380317558,1755665433370,-520.65139852,0.00010266,2]
[380317561,1755665438453,-703.53301089,0.00010266,2]
[380317562,1755665438466,-1441.12848196,0.00010266,2]
[380317563,1755665438481,-1658.07255452,0.00010266,2]
[380317564,1755665438495,-1875.01662707,0.00010266,2]
[380317565,1755665438515,-2091.96069963,0.00010266,2]
[380317566,1755665438529,-2525.84884473,0.00010266,2]
[380317567,1755665438544,-2308.90477218,0.00010266,2]
[380317568,1755665438558,-150.0,0.0001027,2]
[380317569,1755665438572,-300.0,0.00010275,2]
[380317570,1755665438589,-150.0,0.00010275,2]
[380317571,1755665438603,-500.0,0.00010275,2]
[380317572,1755665438616,-155.29386299,0.00010275,2]
[380317573,1755665438631,-275.47192112,0.00010275,2]
[380317574,1755665438646,-559.39841094,0.00010275,2]
[380317575,1755665438659,-289.20307168,0.00010275,2]
[380317576,1755665438673,-500.0,0.00010275,2]
[380317577,1755665438687,-500.0,0.00010275,2]
[380317578,1755665438700,-500.0,0.00010275,2]
[380317579,1755665438714,-500.0,0.00010275,2]
[380317581,1755665438731,-500.0,0.00010275,2]
[380317585,1755665438745,-500.0,0.00010275,2]
[380317587,1755665438759,-353.45242352,0.00010275,2]
[380317589,1755665438775,-500.0,0.00010275,2]
[380317592,1755665438788,-500.0,0.00010275,2]
[380317594,1755665438803,-500.0,0.00010275,2]
[380317597,1755665438816,-500.0,0.00010275,2]
[380317599,1755665438829,-500.0,0.00010275,2]
[380317602,1755665438844,-500.0,0.00010275,2]
[380317605,1755665438857,-500.0,0.00010275,2]
[380317609,1755665438870,-500.0,0.00010275,2]
[380317611,1755665438883,-500.0,0.00010275,2]
[380317613,1755665438897,-263.23846321,0.00010275,2]
[380317616,1755665438910,-500.0,0.00010275,2]
[380317618,1755665438923,-500.0,0.00010275,2]
[380317621,1755665438936,-259.86574198,0.00010275,2]
[380317623,1755665438949,-341459.3367012,0.00010276,2]
[380317626,1755665438962,-152.0,0.00010382,2]
[380317628,1755665438976,-150.0,0.0001039,2]
[380317631,1755665438989,-47140.06006086,0.00010392,2]
[380317633,1755665439002,-503.0,0.00010575,2]
[380317636,1755665439014,-150.99,0.00010575,2]
[380317638,1755665439027,-299.99,0.00010575,2]
[380317640,1755665439041,-999.99,0.00010575,2]
[380317643,1755665439055,-277.35679052,0.00010777,2]
[380317645,1755665439066,-782.68068996,0.0001078,2]
[380317647,1755665439076,-347.13,0.000108,2]
[380317649,1755665439085,-150.0,0.000108,2]
[380317651,1755665439094,-2027.8354111,0.00010801,2]
[380317653,1755665439103,-1632.8690287,0.00010801,2]
[380317655,1755665439112,-1632.8690288,0.00010801,2]
[380317657,1755665439121,-341459.3367012,0.00010818,2]
[380317659,1755665439131,-153.0,0.00010876,2]
[380317661,1755665439140,-606.45887,0.0001089,2]
[380317663,1755665439150,-472.1998,0.00010898,2]
[380317665,1755665439159,-303.67,0.000109,2]
[380317667,1755665439168,-816.54,0.000109,2]
[380317669,1755665439178,-519.41017726,0.000109,2]
[380317671,1755665439187,-412.48730728,0.000109,2]
[380317673,1755665439197,-178.0561922,0.00010968,2]
[380317675,1755665439206,-500.0,0.00010973,2]
[380317677,1755665439215,-162.93,0.00010976,2]
[380317679,1755665439225,-671.3193651,0.0001099,2]
[380317681,1755665439234,-671.3193651,0.0001099,2]
[380317683,1755665439243,-671.3193651,0.0001099,2]
[380317684,1755665439253,-300.0,0.00010991,2]
[380317685,1755665439262,-721.12765535,0.00010991,2]
[380317686,1755665439272,-160.0,0.00010991,2]
[380317687,1755665439281,-500.0,0.00010991,2]
[380317688,1755665439292,-298.09461436,0.00010991,2]
[380317689,1755665439303,-209.08099929,0.00010991,2]
[380317690,1755665439313,-3989.7887339,0.00010992,2]
[380317691,1755665439323,-97620.1287014,0.00010998,2]
[380317692,1755665439335,-838.25,0.00010999,2]
[380317693,1755665439345,-1752.0,0.00011,2]
[380317694,1755665439849,-301.45157035,0.00011,2]
[380317695,1755665440106,-3059268.52096785,0.00011,2]
[380317696,1755665440150,-3462594.89684275,0.00011,2]
[380317697,1755665440186,-500.0,0.00011,2]
[380317698,1755665440201,-500.0,0.00011,2]
[380317699,1755665440211,-500.0,0.00011,2]
[380317700,1755665440220,-500.0,0.00011,2]
[380317701,1755665440230,-500.0,0.00011,2]
[380317702,1755665440240,-403.04,0.00011,2]
[380317703,1755665440250,-500.0,0.00011,2]
[380317704,1755665440260,-500.0,0.00011,2]
[380317706,1755665440270,-500.0,0.00011,2]
[380317707,1755665440280,-500.0,0.00011,2]
[380317708,1755665440289,-500.0,0.00011,2]
[380317709,1755665440299,-500.0,0.00011,2]
[380317710,1755665440308,-500.0,0.00011,2]
[380317711,1755665440317,-500.0,0.00011,2]
[380317712,1755665440327,-500.0,0.00011,2]
[380317713,1755665440336,-500.0,0.00011,2]
[380317714,1755665440345,-500.0,0.00011,2]
[380317715,1755665440355,-500.0,0.00011,2]
[380317716,1755665440365,-500.0,0.00011,2]
[380317717,1755665440375,-500.0,0.00011,2]
[380317718,1755665440385,-500.0,0.00011,2]
[380317719,1755665440395,-500.0,0.00011,2]
[380317720,1755665440404,-500.0,0.00011,2]
[380317721,1755665440414,-500.0,0.00011,2]
[380317722,1755665440423,-500.0,0.00011,2]
[380317723,1755665440433,-500.0,0.00011,2]
[380317724,1755665440442,-500.0,0.00011,2]
[380317725,1755665440451,-500.0,0.00011,2]
[380317726,1755665440460,-500.0,0.00011,2]
[380317727,1755665440470,-500.0,0.00011,2]
[380317728,1755665440480,-500.0,0.00011,2]
[380317729,1755665440489,-500.0,0.00011,2]
[380317730,1755665440498,-500.0,0.00011,2]
[380317731,1755665440511,-500.0,0.00011,2]
[380317732,1755665440520,-500.0,0.00011,2]
[380317733,1755665440530,-500.0,0.00011,2]
[380317734,1755665440539,-500.0,0.00011,2]
[380317735,1755665440550,-500.0,0.00011,2]
[380317736,1755665440559,-500.0,0.00011,2]
[380317737,1755665440568,-500.0,0.00011,2]
[380317738,1755665440579,-500.0,0.00011,2]
[380317739,1755665440588,-500.0,0.00011,2]
[380317740,1755665440598,-500.0,0.00011,2]
[380317741,1755665440607,-500.0,0.00011,2]
[380317742,1755665440617,-500.0,0.00011,2]
[380317743,1755665440627,-500.0,0.00011,2]
[380317744,1755665440636,-500.0,0.00011,2]
[380317745,1755665440646,-500.0,0.00011,2]
[380317746,1755665440655,-500.0,0.00011,2]
[380317747,1755665440665,-500.0,0.00011,2]
[380317748,1755665440675,-500.0,0.00011,2]
[380317749,1755665440685,-500.0,0.00011,2]
[380317751,1755665440694,-500.0,0.00011,2]
[380317753,1755665440703,-500.0,0.00011,2]
[380317755,1755665440712,-500.0,0.00011,2]
[380317757,1755665440721,-500.0,0.00011,2]
[380317759,1755665440731,-500.0,0.00011,2]
[380317761,1755665440740,-500.0,0.00011,2]
[380317763,1755665440749,-500.0,0.00011,2]
[380317765,1755665440758,-500.0,0.00011,2]
[380317767,1755665440768,-500.0,0.00011,2]
[380317768,1755665440777,-500.0,0.00011,2]
[380317770,1755665440787,-500.0,0.00011,2]
[380317771,1755665440796,-506.08,0.00011,2]
[380317772,1755665440805,-1219.0,0.00011,2]
[380317773,1755665440814,-153.78299256,0.00011,2]
[380317774,1755665440824,-293087.94,0.00011,2]
[380317775,1755665440834,-500.0,0.00011,2]
[380317776,1755665440843,-500.0,0.00011,2]
[380317777,1755665440853,-500.0,0.00011,2]
[380317778,1755665440863,-500.0,0.00011,2]
[380317779,1755665440873,-500.0,0.00011,2]
[380317780,1755665440882,-500.0,0.00011,2]
[380317781,1755665440893,-500.0,0.00011,2]
[380317782,1755665440903,-500.0,0.00011,2]
[380317783,1755665440912,-326.19,0.00011,2]
[380317784,1755665440922,-15862.85,0.00011,2]
[380317785,1755665440931,-151.0,0.00011,2]
[380317786,1755665440942,-4524.6039637,0.00011,2]
[380317787,1755665440952,-200.0,0.00011,2]
[380317788,1755665440961,-5272.6102085,0.00011,2]
[380317789,1755665440971,-211.96604,0.00011,2]
[380317790,1755665440981,-211.96604,0.00011,2]
[380317791,1755665440990,-151.0,0.00011,2]
[380317792,1755665441000,-151.0,0.00011,2]
[380317793,1755665441009,-200.051188,0.00011,2]
[380317794,1755665441018,-151.0,0.00011,2]
[380317795,1755665441028,-151.0,0.00011,2]
[380317796,1755665441037,-290.800451,0.00011,2]
[380317797,1755665441047,-317.45377,0.00011,2]
[380317798,1755665441056,-151.0,0.00011,2]
[380317799,1755665441066,-317.45377,0.00011,2]
[380317800,1755665441075,-151.0,0.00011,2]
[380317801,1755665441085,-154.798794,0.00011,2]
[380317802,1755665441094,-317.45377,0.00011,2]
[380317803,1755665441104,-151.0,0.00011,2]
[380317804,1755665441114,-317.45377,0.00011,2]
[380317805,1755665441123,-174.894316,0.00011,2]
[380317806,1755665441133,-174.894316,0.00011,2]
[380317807,1755665441144,-174.894316,0.00011,2]
[380317808,1755665441154,-174.894316,0.00011,2]
[380317809,1755665441163,-151.0,0.00011,2]
[380317810,1755665441173,-151.0,0.00011,2]
[380317811,1755665441182,-151.0,0.00011,2]
[380317812,1755665441192,-151.0,0.00011,2]
[380317813,1755665441202,-151.0,0.00011,2]
[380317814,1755665441212,-293.005649,0.00011,2]
[380317815,1755665441222,-151.0,0.00011,2]
[380317816,1755665441231,-293.005649,0.00011,2]
[380317817,1755665441241,-151.611979,0.00011,2]
[380317818,1755665441250,-151.0,0.00011,2]
[380317819,1755665441262,-151.0,0.00011,2]
[380317820,1755665441272,-293.005649,0.00011,2]
[380317821,1755665441281,-151.0,0.00011,2]
[380317822,1755665441292,-151.0,0.00011,2]
[380317823,1755665441302,-293.005649,0.00011,2]
[380317824,1755665441312,-151.0,0.00011,2]
[380317825,1755665441322,-151.0,0.00011,2]
[380317826,1755665441331,-151.0,0.00011,2]
[380317827,1755665441341,-151.0,0.00011,2]
[380317828,1755665441351,-151.0,0.00011,2]
[380317829,1755665441364,-151.0,0.00011,2]
[380317830,1755665441376,-151.0,0.00011,2]
[380317831,1755665441386,-151.0,0.00011,2]
[380317832,1755665441396,-151.937667,0.00011,2]
[380317833,1755665441405,-151.0,0.00011,2]
[380317834,1755665441414,-151.0,0.00011,2]
[380317835,1755665441423,-151.0,0.00011,2]
[380317836,1755665441433,-151.0,0.00011,2]
[380317837,1755665441442,-151.0,0.00011,2]
[380317838,1755665441451,-151.0,0.00011,2]
[380317839,1755665441461,-151.0,0.00011,2]
[380317840,1755665441470,-151.0,0.00011,2]
[380317841,1755665441483,-195.053638,0.00011,2]
[380317842,1755665441492,-243.72,0.00011,2]
[380317843,1755665441502,-151.0,0.00011,2]
[380317844,1755665441515,-151.0,0.00011,2]
[380317845,1755665441524,-210.32123,0.00011,2]
[380317846,1755665441533,-210.32123,0.00011,2]
[380317847,1755665441543,-210.32123,0.00011,2]
[380317848,1755665441552,-210.32123,0.00011,2]
[380317849,1755665441562,-151.0,0.00011,2]
[380317850,1755665441571,-151.0,0.00011,2]
[380317851,1755665441582,-151.0,0.00011,2]
[380317852,1755665441596,-151.0,0.00011,2]
[380317853,1755665441605,-151.0,0.00011,2]
[380317854,1755665441614,-151.0,0.00011,2]
[380317855,1755665441623,-270.731819,0.00011,2]
[380317856,1755665441632,-151.0,0.00011,2]
[380317857,1755665441643,-151.230914,0.00011,2]
[380317858,1755665441652,-151.0,0.00011,2]
[380317859,1755665441661,-151.0,0.00011,2]
[380317860,1755665441670,-187.639274,0.00011,2]
[380317861,1755665441680,-151.257684,0.00011,2]
[380317862,1755665441689,-151.0,0.00011,2]
[380317863,1755665441698,-151.0,0.00011,2]
[380317864,1755665441707,-151.277449,0.00011,2]
[380317865,1755665441716,-151.0,0.00011,2]
[380317866,1755665441725,-151.0,0.00011,2]
[380317867,1755665441745,-295.613942,0.00011,2]
[380317868,1755665441755,-151.0,0.00011,2]
[380317869,1755665441765,-151.0,0.00011,2]
[380317870,1755665441775,-151.0,0.00011,2]
[380317871,1755665441785,-151.0,0.00011,2]
[380317872,1755665441795,-151.0,0.00011,2]
[380317873,1755665441805,-271.352956,0.00011,2]
[380317874,1755665441815,-151.0,0.00011,2]
[380317875,1755665441825,-271.352956,0.00011,2]
[380317876,1755665441834,-151.0,0.00011,2]
[380317877,1755665441844,-271.352956,0.00011,2]
[380317878,1755665441854,-271.352956,0.00011,2]
[380317879,1755665441864,-229.410004,0.00011,2]
[380317880,1755665441873,-229.410004,0.00011,2]
[380317881,1755665441883,-151.0,0.00011,2]
[380317882,1755665441894,-151.0,0.00011,2]
[380317883,1755665441904,-151.238838,0.00011,2]
[380317884,1755665441914,-229.410004,0.00011,2]
[380317885,1755665441929,-199.189861,0.00011,2]
[380317886,1755665441949,-151.0,0.00011,2]
[380317887,1755665441964,-151.0,0.00011,2]
[380317888,1755665441973,-229.410004,0.00011,2]
[380317889,1755665441983,-151.0,0.00011,2]
[380317890,1755665441992,-151.0,0.00011,2]
[380317891,1755665442001,-151.0,0.00011,2]
[380317892,1755665442011,-151.0,0.00011,2]
[380317893,1755665442020,-151.0,0.00011,2]
[380317894,1755665442029,-151.0,0.00011,2]
[380317895,1755665442038,-958.933314,0.00011,2]
[380317896,1755665442048,-958.933314,0.00011,2]
[380317897,1755665442058,-151.0,0.00011,2]
[380317898,1755665442067,-151.0,0.00011,2]
[380317899,1755665442077,-958.933314,0.00011,2]
[380317900,1755665442086,-207.311807,0.00011,2]
[380317901,1755665442096,-958.933314,0.00011,2]
[380317902,1755665442106,-207.311807,0.00011,2]
[380317903,1755665442115,-193.445311,0.00011,2]
[380317904,1755665442125,-207.311807,0.00011,2]
[380317905,1755665442134,-151.0,0.00011,2]
[380317906,1755665442145,-207.311807,0.00011,2]
[380317907,1755665442155,-193.445311,0.00011,2]
[380317908,1755665442165,-151.0,0.00011,2]
[380317909,1755665442175,-193.445311,0.00011,2]
[380317910,1755665442186,-193.445311,0.00011,2]
[380317911,1755665442202,-151.0,0.00011,2]
[380317912,1755665442212,-170.866764,0.00011,2]
[380317913,1755665442222,-151.0,0.00011,2]
[380317914,1755665442232,-202.09144151,0.00011,2]
[380317915,1755665442242,-151.0,0.00011,2]
[380317916,1755665442252,-273.241916,0.00011,2]
[380317917,1755665442262,-273.241916,0.00011,2]
[380317918,1755665442272,-273.241916,0.00011,2]
[380317919,1755665442282,-273.241916,0.00011,2]
[380317920,1755665442292,-151.0,0.00011,2]
[380317921,1755665442303,-151.0,0.00011,2]
[380317922,1755665442313,-151.0,0.00011,2]
[380317923,1755665442323,-151.208663,0.00011,2]
[380317924,1755665442333,-151.980564,0.00011,2]
[380317925,1755665442343,-151.0,0.00011,2]
[380317926,1755665442352,-151.0,0.00011,2]
[380317927,1755665442362,-200.684646,0.00011,2]
[380317928,1755665442372,-151.0,0.00011,2]
[380317929,1755665442382,-151.0,0.00011,2]
[380317930,1755665442393,-164.647408,0.00011,2]
[380317931,1755665442404,-164.647408,0.00011,2]
[380317932,1755665442415,-164.647408,0.00011,2]
[380317933,1755665442426,-160.808299,0.00011,2]
[380317934,1755665442436,-151.0,0.00011,2]
[380317935,1755665442446,-164.647408,0.00011,2]
[380317936,1755665442456,-160.808299,0.00011,2]
[380317937,1755665442466,-151.0,0.00011,2]
[380317938,1755665442476,-160.808299,0.00011,2]
[380317939,1755665442487,-160.808299,0.00011,2]
[380317940,1755665442497,-151.0,0.00011,2]
[380317941,1755665442510,-151.0,0.00011,2]
[380317942,1755665442520,-982653.3605826,0.00011,2]
[380317943,1755665442531,-151.0,0.00011,2]
[380317944,1755665442540,-257.463563,0.00011,2]
[380317945,1755665442551,-257.463563,0.00011,2]
[380317946,1755665442561,-257.463563,0.00011,2]
[380317947,1755665442572,-257.463563,0.00011,2]
[380317948,1755665442582,-178.237934,0.00011,2]
[380317949,1755665442593,-178.237934,0.00011,2]
[380317950,1755665442604,-178.237934,0.00011,2]
[380317951,1755665442615,-178.237934,0.00011,2]
[380317952,1755665442626,-151.0,0.00011,2]